bitfinex/quotes_SOLUSD_20250908
["timestamp","ask_amount","ask_price","bid_price","bid_amount"]
[1757342388193,9.83095551,215.25,215.24,37.35]
[1757342388394,13.29989358,215.25,215.24,37.35]
[1757342388606,4.16893808,215.25,215.24,37.35]
[1757342388816,1e-08,215.25,215.24,37.35]
[1757342389017,0.70000001,215.25,215.24,37.35]
[1757342389516,5.18519477,215.25,215.24,0.03]
[1757342389706,5.18519477,215.25,215.24,37.35]
[1757342390395,9.83095551,215.25,215.24,37.35]
[1757342391722,9.83095551,215.25,215.24,0.03]
[1757342391900,13.30150253,215.25,215.24,37.35]
[1757342392522,26.89709654,215.25,215.24,0.03]
[1757342392815,26.89709654,215.25,215.24,37.35]
[1757342393404,26.89709654,215.25,215.21,0.03]
[1757342393405,86.39559401,215.24,215.21,0.03]
[1757342393608,18.08078877,215.22,215.21,0.03]
[1757342393821,21.55133579,215.22,215.21,0.03]
[1757342394014,26.89774411,215.22,215.21,0.03]
[1757342394721,26.89774411,215.22,215.21,37.35]
[1757342397527,26.89774411,215.22,215.2,0.03]
[1757342397723,94.35133579,215.21,215.2,0.03]
[1757342398023,13.59559401,215.2,215.16,33.45]
[1757342398225,18.08078877,215.18,215.16,33.45]
[1757342398430,21.55133579,215.18,215.16,33.45]
[1757342398611,22.25133579,215.18,215.16,33.45]
[1757342398810,22.25133579,215.18,215.17,37.33]
[1757342399229,4.64748803,215.17,215.16,33.45]
[1757342399419,4.64748803,215.17,215.1,0.03]
[1757342399420,13.59559401,215.16,215.1,0.03]
[1757342399725,4.48519476,215.11,215.1,0.03]
[1757342400211,5.18519476,215.11,215.1,0.03]
[1757342400524,5.18519476,215.14,215.1,0.03]
[1757342400728,5.18519476,215.14,215.1,37.35]
[1757342400903,4.48519476,215.13,215.1,37.35]
[1757342401104,72.8,215.15,215.1,37.35]
[1757342401305,9.13345832,215.14,215.1,37.35]
[1757342401527,9.83345832,215.14,215.1,37.35]
[1757342401729,5.18519476,215.13,215.1,0.03]
[1757342401931,0.7,215.13,215.11,37.3]
[1757342402138,14.29559401,215.12,215.1,0.03]
[1757342402431,14.29559401,215.12,215.11,37.32]
[1757342403132,18.78078877,215.12,215.11,37.32]
[1757342403430,23.42935701,215.12,215.11,37.32]
[1757342404136,73.5,215.15,215.11,37.32]
[1757342404625,77.98519476,215.15,215.11,37.32]
[1757342404827,4.64770403,215.16,215.12,0.72]
[1757342405031,4.64751595,215.17,215.13,0.72]
[1757342405328,4.64792005,215.15,215.11,37.32]
[1757342406133,4.64792005,215.15,215.12,37.32]
[1757342406712,0.69,215.14,215.1,0.03]
[1757342407014,0.69,215.14,215.11,37.32]
[1757342407219,0.69,215.13,215.11,37.32]
[1757342407525,5.33856824,215.12,215.11,37.32]
[1757342407715,18.93416225,215.12,215.11,37.32]
[1757342408114,23.41935701,215.12,215.11,37.32]
[1757342408728,4.64856824,215.12,215.11,37.32]
[1757342409639,4.48519476,215.14,215.11,37.32]
[1757342409826,4.48519476,215.12,215.11,37.32]
[1757342410134,5.17519476,215.12,215.11,37.32]
[1757342410320,18.77078877,215.12,215.11,37.32]
[1757342410523,18.77078877,215.12,215.1,0.03]
[1757342410727,18.08078877,215.11,215.1,0.03]
[1757342410925,18.08078877,215.11,215.1,37.35]
[1757342411239,18.77078877,215.11,215.1,37.35]
[1757342411629,23.41957311,215.11,215.1,37.35]
[1757342411828,23.41957311,215.11,215.1,0.03]
[1757342412026,35.04153396,215.11,215.08,0.03]
[1757342412229,18.08078877,215.09,215.08,0.03]
[1757342412623,18.77078877,215.09,215.08,0.03]
[1757342413325,18.77078877,215.09,215.08,37.33]
[1757342413645,23.42000537,215.09,215.08,37.33]
[1757342414255,1.8602488,215.1,215.08,37.33]
[1757342414537,4.48519476,215.09,215.08,37.33]
[1757342415524,9.1342704,215.1,215.08,37.33]
[1757342416026,72.7,215.11,215.08,37.33]
[1757342416216,4.64882668,215.11,215.08,37.33]
[1757342417228,4.64882668,215.11,215.08,0.03]
[1757342417545,4.64882668,215.11,215.09,37.3]
[1757342417727,16.27078753,215.11,215.08,0.03]
[1757342417929,4.48519476,215.1,215.09,37.3]
[1757342418132,4.64882668,215.11,215.09,37.3]
[1757342418647,5.17519476,215.1,215.09,37.3]
[1757342419622,4.48519476,215.1,215.09,37.3]
[1757342420021,4.64900046,215.1,215.09,37.3]
[1757342420253,9.13419522,215.1,215.09,37.3]
[1757342420429,7.52442683,215.1,215.09,37.3]
[1757342420630,4.64900046,215.1,215.09,37.3]
[1757342423554,7.52442683,215.1,215.09,37.3]
[1757342423926,4.64900046,215.1,215.09,37.3]
[1757342424531,72.7,215.11,215.09,38.02]
[1757342425036,0.06,215.16,215.1,0.72]
[1757342425536,0.06,215.16,215.11,37.3]
[1757342425739,0.06,215.16,215.11,38.02]
[1757342426044,4.64793575,215.15,215.11,38.02]
[1757342426244,19.20239048,215.16,215.09,26.0]
[1757342426446,3.56542637,215.15,215.1,37.3]
[1757342426650,16.32696411,215.16,215.1,37.3]
[1757342426651,3.56542637,215.14,215.1,37.3]
[1757342427150,3.56542637,215.13,215.09,26.0]
[1757342427357,2.87542637,215.13,215.11,37.3]
[1757342427559,0.06,215.16,215.12,0.72]
[1757342427768,0.06,215.16,215.14,26.0]
[1757342427943,0.06,215.16,215.15,37.3]
[1757342432158,0.06,215.16,215.15,38.02]
[1757342433259,0.06,215.16,215.15,37.3]
[1757342434074,0.06,215.16,215.15,38.02]
[1757342434447,0.06,215.16,215.15,64.0]
[1757342434763,0.06,215.16,215.15,63.28]
[1757342435563,0.06,215.16,215.15,68.61792005]
[1757342435758,0.06,215.16,215.15,26.69]
[1757342435944,0.06,215.16,215.15,63.97]
[1757342436258,0.06,215.16,215.15,63.28]
[1757342437645,2.93542637,215.16,215.15,63.28]
[1757342437846,2.93542637,215.16,215.13,26.0]
[1757342438041,2.93542637,215.16,215.14,37.28]
[1757342438042,3.59542637,215.15,215.14,37.28]
[1757342438241,2.87542637,215.15,215.14,37.28]
[1757342438545,7.52334642,215.15,215.14,37.28]
[1757342438746,4.70773952,215.16,215.14,37.28]
[1757342439779,7.58316589,215.16,215.14,37.28]
[1757342440570,7.58316589,215.16,215.15,37.26]
[1757342440770,8.30316589,215.16,215.15,37.26]
[1757342442560,5.42773952,215.16,215.15,37.26]
[1757342442861,8.30316589,215.16,215.15,37.26]
[1757342443182,7.58316589,215.16,215.15,37.26]
[1757342443370,4.70773952,215.16,215.15,37.26]
[1757342444379,0.06,215.16,215.15,37.26]
[1757342444956,4.70770403,215.16,215.15,37.26]
[1757342445360,7.5831304,215.16,215.15,37.26]
[1757342445782,7.5831304,215.16,215.12,0.69]
[1757342445958,2.87542637,215.15,215.13,26.0]
[1757342446161,2.87542637,215.14,215.13,26.0]
[1757342446388,4.70770403,215.16,215.13,63.26]
[1757342446586,2.87542637,215.15,215.13,63.26]
[1757342446974,7.5831304,215.16,215.13,63.26]
[1757342447174,4.70770403,215.16,215.13,63.26]
[1757342447383,7.5831304,215.16,215.13,63.26]
[1757342447682,2.87542637,215.15,215.13,63.26]
[1757342449290,7.52343104,215.15,215.13,63.26]
[1757342450089,4.64800467,215.15,215.13,63.26]
[1757342450276,7.52343104,215.15,215.13,63.26]
[1757342450665,7.5831761,215.16,215.13,63.95]
[1757342450970,7.5831761,215.16,215.13,63.26]
[1757342451164,8.3031761,215.16,215.13,63.26]
[1757342451390,0.06,215.16,215.13,63.26]
[1757342451579,2.93542637,215.16,215.13,63.26]
[1757342452085,7.5831695,215.16,215.13,63.26]
[1757342452286,0.06,215.15,215.13,63.95]
[1757342452791,0.06,215.15,215.13,63.26]
[1757342453991,3.65542637,215.15,215.13,63.26]
[1757342454192,2.87542637,215.14,215.13,63.26]
[1757342454771,3.59542637,215.14,215.13,37.24]
[1757342455886,7.52356246,215.14,215.13,37.24]
[1757342456695,2.87542637,215.14,215.13,37.24]
[1757342457191,4.64813609,215.14,215.13,37.24]
[1757342457491,7.52356246,215.14,215.13,37.24]
[1757342458489,7.58334642,215.15,215.13,37.24]
[1757342458697,2.87542637,215.14,215.13,37.24]
[1757342459490,2.87542637,215.14,215.1,26.03]
[1757342459699,2.87542637,215.11,215.1,0.03]
[1757342460007,2.87542637,215.11,215.1,37.25]
[1757342460170,3.59542637,215.11,215.1,0.03]
[1757342460372,11.71389026,215.11,215.1,37.25]
[1757342461574,8.83846389,215.11,215.1,37.25]
[1757342461899,11.71389026,215.11,215.1,37.25]
[1757342462099,11.71389026,215.11,215.05,0.03]
[1757342462100,34.05601875,215.11,215.05,0.03]
[1757342462303,21.12066933,215.07,215.05,0.03]
[1757342462612,24.59034888,215.07,215.05,0.03]
[1757342462828,8.11887753,215.07,215.06,0.72]
[1757342463103,4.64900046,215.1,215.06,0.72]
[1757342463298,4.64900046,215.1,215.07,37.42]
[1757342463478,7.52442683,215.1,215.06,0.03]
[1757342463677,7.52442683,215.1,215.08,0.5]
[1757342464300,7.52389521,215.13,215.08,0.5]
[1757342464474,4.64846884,215.13,215.08,1.19]
[1757342464875,4.64846884,215.13,215.1,26.0]
[1757342465097,4.64846884,215.13,215.1,26.69]
[1757342465289,4.64846884,215.13,215.09,26.0]
[1757342465492,8.24389521,215.13,215.1,37.38]
[1757342465680,19.8647756,215.13,215.11,37.38]
[1757342466173,19.8647756,215.13,215.09,26.0]
[1757342466577,7.52388588,215.13,215.09,0.68]
[1757342466774,4.64845951,215.13,215.1,37.36]
[1757342467177,4.64845951,215.13,215.09,0.68]
[1757342467397,4.64845951,215.13,215.1,37.36]
[1757342468301,0.68,215.12,215.08,26.5]
[1757342468604,0.68,215.11,215.09,37.34]
[1757342468981,0.06,215.15,215.08,0.5]
[1757342468982,13.65559401,215.15,215.08,0.5]
[1757342469200,13.65559401,215.15,215.09,37.36]
[1757342469201,4.15051085,215.14,215.09,37.36]
[1757342469389,3.47051085,215.13,215.09,37.36]
[1757342469705,3.47051085,215.12,215.09,37.36]
[1757342469887,3.47051085,215.11,215.09,37.36]
[1757342470290,3.55542637,215.11,215.08,0.5]
[1757342470589,3.55542637,215.11,215.09,37.32]
[1757342470590,2.87542637,215.1,215.09,37.32]
[1757342471111,3.55542637,215.1,215.09,37.32]
[1757342471488,3.55542637,215.1,215.08,0.5]
[1757342471695,2.87542637,215.09,215.08,0.5]
[1757342471890,3.55542637,215.09,215.08,37.8]
[1757342472408,8.20464297,215.09,215.08,0.5]
[1757342472618,11.67438166,215.09,215.08,0.5]
[1757342472784,11.67438166,215.09,215.06,0.03]
[1757342472785,2.87542637,215.07,215.06,0.03]
[1757342472990,6.34533364,215.07,215.06,37.33]
[1757342473293,7.02533364,215.07,215.06,37.33]
[1757342473489,3.46990727,215.07,215.06,37.33]
[1757342473692,6.34533364,215.07,215.06,37.33]
[1757342474112,6.34533364,215.07,215.06,0.03]
[1757342474304,7.02533364,215.07,215.06,37.31]
[1757342474716,11.67498259,215.07,215.06,0.03]
[1757342474904,11.67498259,215.07,215.06,37.31]
[1757342475783,11.67498259,215.07,215.05,0.03]
[1757342475990,3.46618006,215.06,215.05,0.03]
[1757342476189,7.02154771,215.06,215.05,0.03]
[1757342476389,4.14612134,215.06,215.03,1e-08]
[1757342476589,2.87542637,215.04,215.03,1e-08]
[1757342476813,7.52572398,215.04,215.03,1e-08]
[1757342477021,4.65029761,215.04,215.03,22.18000001]
[1757342477601,4.65029761,215.04,215.03,37.24000001]
[1757342478324,4.65029761,215.04,215.03,1e-08]
[1757342478524,8.20572398,215.04,215.03,1e-08]
[1757342478715,8.20572398,215.04,215.03,37.24000001]
[1757342479225,8.20572398,215.04,215.03,1e-08]
[1757342479428,8.20572398,215.04,215.03,37.24000001]
[1757342480225,7.52572398,215.04,215.03,37.24000001]
[1757342480402,4.65029761,215.04,215.03,37.24000001]
[1757342480603,5.33029761,215.04,215.03,37.24000001]
[1757342480803,4.65029761,215.04,215.03,37.24000001]
[1757342481226,4.65029761,215.04,215.03,37.92000001]
[1757342481529,4.6492166,215.09,215.03,63.92000001]
[1757342481896,9.14439222,215.09,215.03,63.92000001]
[1757342482101,20.76743373,215.09,215.03,63.92000001]
[1757342482302,4.49517562,215.07,215.04,37.24]
[1757342482602,4.49517562,215.05,215.03,1e-08]
[1757342482802,4.49517562,215.05,215.04,37.24]
[1757342482803,4.65008137,215.05,215.04,37.24]
[1757342483017,9.14525699,215.05,215.04,37.24]
[1757342483499,9.14525699,215.05,215.03,1e-08]
[1757342483812,4.65008137,215.05,215.03,1e-08]
[1757342484003,4.65008137,215.05,215.04,37.24]
[1757342484202,9.14525699,215.05,215.04,37.24]
[1757342484827,9.14525699,215.05,215.03,1e-08]
[1757342485007,0.68,215.04,215.03,1e-08]
[1757342485212,5.17517562,215.04,215.03,1e-08]
[1757342485411,5.17517562,215.04,215.03,37.24000001]
[1757342485623,9.14525699,215.05,215.03,37.24000001]
[1757342485809,4.65008137,215.05,215.03,37.24000001]
[1757342486010,4.65008137,215.05,215.04,37.24]
[1757342486226,4.64978225,215.07,215.04,37.24]
[1757342486427,4.64978225,215.07,215.03,1e-08]
[1757342486624,5.17517562,215.06,215.03,1e-08]
[1757342487131,4.65008137,215.05,215.04,37.24]
[1757342490138,9.14525699,215.05,215.03,1e-08]
[1757342490321,9.82525699,215.05,215.04,37.24]
[1757342491714,9.82525699,215.05,215.03,1e-08]
[1757342491913,9.82525699,215.05,215.04,37.24]
[1757342492113,9.82525699,215.05,215.03,1e-08]
[1757342492415,4.65008137,215.05,215.04,37.24]
[1757342492820,5.33008137,215.05,215.04,37.24]
[1757342493639,9.14525699,215.05,215.04,37.24]
[1757342493843,9.82525699,215.05,215.04,37.24]
[1757342494015,9.82525699,215.05,215.03,1e-08]
[1757342494222,0.68,215.04,215.03,1e-08]
[1757342494930,0.68,215.04,215.03,37.24000001]
[1757342495240,9.82547323,215.04,215.03,37.24000001]
[1757342496140,5.33029761,215.04,215.03,1e-08]
[1757342496339,9.82547323,215.04,215.03,37.24000001]
[1757342496541,9.82547323,215.04,215.03,1e-08]
[1757342496842,9.82547323,215.04,215.03,37.24000001]
[1757342497419,9.14547323,215.04,215.03,37.24000001]
[1757342497722,4.65029761,215.04,215.03,37.24000001]
[1757342498145,9.14547323,215.04,215.03,37.24000001]
[1757342498842,9.14547323,215.04,215.03,1e-08]
[1757342498843,5.15517562,215.04,215.03,1e-08]
[1757342499028,8.62124884,215.04,215.03,1e-08]
[1757342499232,8.62124884,215.04,215.03,30.32000001]
[1757342499837,4.12607322,215.04,215.03,1e-08]
[1757342500141,4.12607322,215.04,215.03,37.24000001]
[1757342500325,8.62124884,215.04,215.03,37.24000001]
[1757342500721,13.27154645,215.04,215.03,37.24000001]
[1757342501541,9.80547323,215.04,215.03,1e-08]
[1757342501738,13.27324221,215.04,215.03,37.24000001]
[1757342502823,8.77806659,215.04,215.02,0.03]
[1757342503027,7.9629446,215.03,215.02,0.03]
[1757342503547,8.6229446,215.03,215.02,0.03]
[1757342504164,8.6229446,215.03,215.02,37.27]
[1757342504747,13.27345848,215.03,215.02,37.27]
[1757342505332,13.27649822,215.03,215.02,37.27]
[1757342505534,12.61649822,215.03,215.02,37.27]
[1757342506347,12.61649822,215.03,215.0,0.03]
[1757342506348,24.90278292,215.03,215.0,0.03]
[1757342506538,4.49517562,215.01,215.0,0.03]
[1757342506739,7.96598434,215.01,215.0,0.03]
[1757342506939,13.2769308,215.01,215.0,0.03]
[1757342507835,4.49517562,215.0,214.99,0.03]
[1757342508030,7.96598434,215.0,214.99,0.03]
[1757342508233,8.62598434,215.0,214.99,0.03]
[1757342508752,4.13080872,215.0,214.99,0.03]
[1757342508966,13.27714713,215.0,214.99,0.03]
[1757342509158,13.27714713,215.0,214.99,37.25]
[1757342510756,12.61714713,215.0,214.99,37.25]
[1757342511066,13.27714713,215.0,214.99,37.25]
[1757342511737,13.27714713,215.0,214.98,1e-08]
[1757342512041,7.96598434,214.99,214.98,1e-08]
[1757342512234,3.47080872,214.99,214.98,29.80000001]
[1757342512434,8.62598434,214.99,214.98,29.80000001]
[1757342512975,8.12181794,214.99,214.98,29.80000001]
[1757342513258,12.61699356,214.99,214.98,29.80000001]
[1757342515258,12.61699356,214.99,214.98,37.22000001]
[1757342515776,72.6,215.02,214.98,37.87000001]
[1757342515954,3.47140916,215.01,214.98,37.22000001]
[1757342516152,7.96658478,215.01,214.98,37.22000001]
[1757342516365,4.49517562,215.0,214.98,37.22000001]
[1757342517363,4.65137913,214.99,214.98,37.87000001]
[1757342518257,9.14655475,214.99,214.98,1e-08]
[1757342518574,13.2798067,214.99,214.98,37.22000001]
[1757342518866,12.6198067,214.99,214.98,1e-08]
[1757342519073,12.6198067,214.99,214.98,37.22000001]
[1757342519456,12.6198067,214.99,214.98,1e-08]
[1757342519657,12.6198067,214.99,214.98,37.22000001]
[1757342520057,13.2798067,214.99,214.98,37.22000001]
[1757342520567,8.12463108,214.99,214.98,37.22000001]
[1757342522072,4.65029761,215.04,214.98,0.65000001]
[1757342522282,3.47219437,215.03,214.99,37.22]
[1757342522461,3.47246254,215.02,214.99,37.87]
[1757342522665,9.14547323,215.04,214.99,37.87]
[1757342522666,20.77121727,215.04,214.99,37.87]
[1757342522876,3.47251823,215.03,214.99,37.87]
[1757342523083,3.47251823,215.02,214.99,37.87]
[1757342523376,4.65094646,215.01,215.0,37.2]
[1757342523677,24.24624259,215.01,215.0,37.2]
[1757342524062,19.75106697,215.01,215.0,37.2]
[1757342525267,24.24624259,215.01,215.0,37.2]
[1757342525462,24.24624259,215.01,214.98,0.65000001]
[1757342525662,4.49517562,215.0,214.98,1e-08]
[1757342525954,4.49517562,214.99,214.98,1e-08]
[1757342526155,4.49517562,214.99,214.98,37.20000001]
[1757342526698,8.67845725,214.99,214.98,37.20000001]
[1757342526865,7.96845725,214.99,214.98,37.20000001]
[1757342527554,8.12466076,214.99,214.98,37.90000001]
[1757342528283,8.12466076,214.99,214.98,37.20000001]
[1757342528460,8.12466076,214.99,214.98,37.90000001]
[1757342528880,8.12466076,214.99,214.98,37.20000001]
[1757342529184,12.61983638,214.99,214.98,37.20000001]
[1757342529769,8.12466076,214.99,214.98,37.20000001]
[1757342530894,8.12466076,214.99,214.98,1e-08]
[1757342531187,8.12466076,214.99,214.98,37.20000001]
[1757342531860,12.61983638,214.99,214.98,37.20000001]
[1757342533066,12.62184898,214.99,214.98,37.20000001]
[1757342535080,13.33184898,214.99,214.98,1e-08]
[1757342535271,13.33184898,214.99,214.98,31.16000001]
[1757342535683,13.33184898,214.99,214.98,37.18000001]
[1757342536489,12.62358053,214.99,214.98,37.18000001]
[1757342537282,13.33358053,214.99,214.98,37.18000001]
[1757342537798,12.62358053,214.99,214.98,37.18000001]
[1757342539884,13.33358053,214.99,214.98,37.18000001]
[1757342540797,12.62358053,214.99,214.98,37.18000001]
[1757342541395,13.33358053,214.99,214.98,37.18000001]
[1757342541898,13.33358053,214.99,214.98,1e-08]
[1757342542089,13.33358053,214.99,214.98,37.18000001]
[1757342542304,11.7171339,214.99,214.98,37.18000001]
[1757342542500,11.7171339,214.99,214.98,1e-08]
[1757342542678,23.34558173,214.99,214.96,0.03]
[1757342542997,2.87872899,214.97,214.96,0.03]
[1757342543312,6.35575477,214.97,214.96,0.03]
[1757342543476,11.00756665,214.97,214.96,0.03]
[1757342543682,11.71756665,214.97,214.96,0.03]
[1757342543907,11.71756665,214.97,214.96,37.19]
[1757342544080,11.71756665,214.97,214.96,0.03]
[1757342544406,11.71756665,214.97,214.96,37.19]
[1757342544610,11.00756665,214.97,214.96,37.19]
[1757342544983,11.71756665,214.97,214.96,37.19]
[1757342547173,8.83883766,214.97,214.96,37.19]
[1757342547374,8.13264201,214.97,214.96,37.19]
[1757342547788,11.011371,214.97,214.96,37.19]
[1757342548485,11.011371,214.97,214.96,0.03]
[1757342548693,11.011371,214.97,214.96,37.19]
[1757342549999,8.13264201,214.97,214.96,37.19]
[1757342550207,8.13264201,214.97,214.96,0.03]
[1757342550379,11.011371,214.97,214.96,37.19]
[1757342551199,11.01196654,214.97,214.96,37.19]
[1757342551592,8.13323755,214.97,214.96,37.19]
[1757342552383,8.84323755,214.97,214.96,37.17]
[1757342552605,11.72196654,214.97,214.96,0.03]
[1757342552897,11.01196654,214.97,214.96,37.17]
[1757342553493,8.13323755,214.97,214.96,37.17]
[1757342554208,11.72196654,214.97,214.95,0.03]
[1757342554389,6.36015466,214.96,214.95,0.03]
[1757342554783,8.13345395,214.96,214.95,0.03]
[1757342555291,8.13345395,214.96,214.95,37.17]
[1757342555794,8.13345395,214.96,214.95,37.87]
[1757342556698,8.13345395,214.96,214.95,37.17]
[1757342558103,4.65202828,214.96,214.95,37.17]
[1757342558320,8.13313889,214.96,214.95,37.17]
[1757342558895,11.71186788,214.96,214.95,0.03]
[1757342559100,8.83313889,214.96,214.95,37.17]
[1757342559490,8.83313889,214.96,214.95,0.03]
[1757342559684,8.83313889,214.96,214.95,37.17]
[1757342560400,8.83307453,214.96,214.95,37.15]
[1757342560819,8.13307453,214.96,214.95,37.15]
[1757342561027,8.83307453,214.96,214.95,37.15]
[1757342561211,8.13307453,214.96,214.95,37.15]
[1757342561825,8.83307453,214.96,214.95,37.15]
[1757342562198,8.13307453,214.96,214.95,37.15]
[1757342568628,3.48104625,214.96,214.95,37.15]
[1757342568831,3.48104625,214.96,214.95,37.85]
[1757342569139,8.83307453,214.96,214.95,37.13]
[1757342569804,8.13307453,214.96,214.95,37.13]
[1757342570305,8.83307453,214.96,214.95,37.13]
[1757342571304,8.13307453,214.96,214.95,37.13]
[1757342571906,3.48104625,214.96,214.95,37.13]
[1757342572399,8.13307453,214.96,214.95,37.13]
[1757342578154,8.83307453,214.96,214.95,37.13]
[1757342578555,8.13307453,214.96,214.95,37.13]
[1757342579051,8.83307453,214.96,214.95,0.03]
[1757342579258,8.83307453,214.96,214.95,37.11]
[1757342580631,8.83307453,214.96,214.95,0.03]
[1757342580832,8.83307453,214.96,214.95,37.11]
[1757342583547,8.83307453,214.96,214.95,0.03]
[1757342583751,8.83307453,214.96,214.95,37.09]
[1757342583931,11.71180352,214.96,214.95,37.09]
[1757342584826,8.83307453,214.96,214.95,37.09]
[1757342585153,8.13307453,214.96,214.95,37.09]
[1757342586325,8.13307453,214.96,214.95,0.03]
[1757342586522,8.85307453,214.96,214.95,37.09]
[1757342588042,8.85307453,214.96,214.95,0.03]
[1757342588364,8.85307453,214.96,214.95,37.09]
[1757342588536,8.85307453,214.96,214.95,0.03]
[1757342588730,11.73180352,214.96,214.95,37.09]
[1757342590037,8.85307453,214.96,214.95,37.09]
[1757342590458,11.73180352,214.96,214.95,37.09]
[1757342591066,8.19307453,214.96,214.95,37.09]
[1757342591253,8.85307453,214.96,214.95,37.09]
[1757342593073,11.73180352,214.96,214.95,37.09]
[1757342593872,8.19307453,214.96,214.95,37.09]
[1757342595861,8.85307453,214.96,214.95,37.09]
[1757342596045,8.19307453,214.96,214.95,37.09]
[1757342596645,11.73180352,214.96,214.95,37.09]
[1757342597745,11.73180352,214.96,214.94,0.03]
[1757342597940,7.01977524,214.95,214.94,0.03]
[1757342598158,79.61977524,214.95,214.94,0.03]
[1757342598664,81.39329095,214.95,214.94,0.03]
[1757342599038,80.73329095,214.95,214.94,26.25]
[1757342599551,81.39329095,214.95,214.94,26.25]
[1757342600056,80.73329095,214.95,214.94,26.25]
[1757342600461,80.73329095,214.95,214.94,26.96]
[1757342601150,80.73329095,214.95,214.94,26.25]
[1757342602670,8.79329095,214.95,214.94,26.25]
[1757342603167,8.13329095,214.95,214.94,26.25]
[1757342603355,8.79329095,214.95,214.94,26.25]
[1757342604461,81.39329095,214.95,214.94,26.25]
[1757342604766,81.39329095,214.95,214.94,37.03]
[1757342605453,81.45329095,214.95,214.94,37.03]
[1757342606246,81.45329095,214.95,214.94,0.03]
[1757342606452,26.0,214.91,214.9,0.03]
[1757342606749,29.48104625,214.91,214.9,29.57]
[1757342607080,34.13415685,214.91,214.9,29.57]
[1757342608065,8.13415685,214.91,214.9,29.57]
[1757342608851,8.13619276,214.91,214.9,37.03]
[1757342610064,8.13619276,214.91,214.69,4.71054922]
[1757342610065,26.0,214.83,214.69,4.71054922]
[1757342610267,4.49915691,214.76,214.75,13.96680556]
[1757342610450,4.49915691,214.76,214.74,22.9]
[1757342610451,8.63972163,214.76,214.74,22.9]
[1757342610646,4.49915691,214.76,214.75,36.0]
[1757342610847,8.13718811,214.76,214.75,36.98]
[1757342611285,4.65527675,214.81,214.75,37.69]
[1757342611454,15.11251092,214.8,214.76,0.71]
[1757342611653,3.47377722,214.79,214.75,36.98]
[1757342611876,3.47377722,214.78,214.75,37.69]
[1757342612051,26.26749024,214.8,214.75,37.69]
[1757342612252,3.47381261,214.79,214.75,37.69]
[1757342612465,3.47381261,214.79,214.73,26.0]
[1757342612466,4.13381261,214.79,214.76,36.98]
[1757342612667,25.60749024,214.8,214.76,36.98]
[1757342612867,30.26298372,214.8,214.76,36.98]
[1757342613576,30.26298372,214.8,214.76,37.69]
[1757342614574,30.26298372,214.8,214.76,36.98]
[1757342616159,0.7,214.79,214.76,36.98]
[1757342616364,26.0,214.75,214.72,0.67]
[1757342616569,26.0,214.77,214.73,36.98]
[1757342616758,26.0,214.77,214.74,0.67]
[1757342616963,26.0,214.76,214.75,0.67]
[1757342617165,26.0,214.77,214.75,0.67]
[1757342617166,30.65614455,214.77,214.75,0.67]
[1757342618275,30.65614455,214.77,214.73,36.98]
[1757342618583,4.65614455,214.77,214.74,0.67]
[1757342618765,4.65614455,214.77,214.75,0.67]
[1757342618968,4.65614455,214.77,214.73,36.98]
[1757342618969,4.65614455,214.77,214.73,37.65]
[1757342619175,16.29498579,214.79,214.74,0.67]
[1757342619674,16.99498579,214.79,214.74,0.67]
[1757342619860,16.29498579,214.79,214.73,36.98]
[1757342620060,0.7,214.78,214.73,36.98]
[1757342620267,0.7,214.78,214.73,37.65]
[1757342620461,14.669407,214.78,214.73,37.65]
[1757342620677,13.969407,214.78,214.73,36.98]
[1757342620858,4.65571022,214.79,214.73,36.98]